bitfinex-derivatives/quotes_ETHF0:USTF0_20251223
["timestamp","ask_amount","ask_price","bid_price","bid_amount"]
[1766483683253,0.01474071,2966.0,2965.7,0.00506235]
[1766483683444,0.02209631,2965.9,2965.7,0.00506235]
[1766483684044,0.16868,2966.2,2965.7,0.00506235]
[1766483684253,0.02948557,2965.8,2965.7,0.00506235]
[1766483684550,0.031673,2965.8,2965.7,0.00506235]
[1766483685353,0.16868,2966.2,2965.7,0.00506235]
[1766483688152,0.16868,2966.2,2965.6,0.00319531]
[1766483688350,0.03069999,2966.1,2965.6,0.00319531]
[1766483688955,0.16868,2966.2,2965.6,0.00319531]
[1766483689159,0.16868,2966.2,2965.6,0.00825766]
[1766483689361,0.16868,2966.2,2965.6,3.38125766]
[1766483689660,0.16868,2966.2,2965.6,0.00825766]
[1766483689861,0.16868,2966.2,2965.6,3.38125766]
[1766483690049,0.01380001,2966.1,2965.6,3.38125766]
[1766483695473,0.01380001,2966.1,2965.6,3.373]
[1766483696671,0.01380001,2966.1,2965.6,3.38210447]
[1766483705470,0.16868,2966.2,2965.6,0.00910447]
[1766483705671,0.16868,2966.2,2965.6,3.373]
[1766483705872,0.16868,2966.2,2965.6,3.35140449]
[1766483706580,0.16868,2966.2,2965.6,3.35880051]
[1766483708678,0.16868,2966.2,2965.6,0.00739602]
[1766483708879,0.16868,2966.2,2965.6,3.38039602]
[1766483709881,0.16868,2966.2,2965.7,0.0149]
[1766483710883,3.373,2966.4,2965.6,3.38039602]
[1766483711083,3.3879,2966.4,2965.7,0.0149]
[1766483711384,0.16868,2966.2,2965.7,0.0149]
[1766483711682,0.16868,2966.2,2965.6,3.38039602]
[1766483711884,0.16868,2966.2,2965.7,0.0183]
[1766483712283,3.373,2966.4,2965.8,0.0183]
[1766483712483,3.373,2966.4,2965.6,3.38039602]
[1766483713187,4.57444116,2966.4,2965.6,3.38039602]
[1766483713390,0.16868,2966.2,2965.6,3.38039602]
[1766483713685,0.16868,2966.2,2965.7,0.0251]
[1766483714186,0.16868,2966.2,2965.6,3.38039602]
[1766483718186,4.57444116,2966.4,2963.1,6.355]
[1766483718390,0.95141192,2966.3,2964.4,0.0183]
[1766483718587,0.16872,2965.5,2964.5,1.20144116]
[1766483718783,3.373,2965.4,2964.5,3.373]
[1766483718985,4.74316116,2965.4,2964.6,0.0183]
[1766483719189,4.74316116,2965.4,2964.6,0.02149606]
[1766483719389,4.74316116,2965.4,2964.6,0.00319606]
[1766483720187,1.20144116,2965.2,2964.6,0.09309606]
[1766483725199,1.37018116,2965.2,2964.6,0.09309606]
[1766483726000,1.37018116,2965.2,2964.6,0.00319606]
[1766483727597,1.20144116,2965.0,2964.6,0.00319606]
[1766483729302,1.20144116,2964.8,2964.4,3.373]
[1766483730301,1.20144116,2964.8,2964.4,3.37738727]
[1766483731998,1.20144116,2964.6,2964.2,3.374]
[1766483732201,1.20144116,2964.8,2964.2,3.374]
[1766483732401,0.0847,2964.7,2964.2,3.374]
[1766483732907,0.0847,2964.7,2964.2,3.37671172]
[1766483733105,0.0847,2964.7,2964.2,0.00271172]
[1766483734708,1.20144116,2964.4,2964.0,3.4587]
[1766483734900,1.20144116,2964.4,2963.7,3.374]
[1766483735094,1.28744116,2964.4,2963.8,0.086]
[1766483735604,1.20144116,2964.2,2963.8,0.00379862]
[1766483736001,0.0861,2964.2,2963.3,5.86]
[1766483736200,0.0861,2964.2,2963.4,3.374]
[1766483736595,1.20144116,2964.0,2963.5,0.0861]
[1766483736901,3.374,2964.2,2963.5,3.374]
[1766483737094,4.57544116,2964.2,2963.5,3.37790086]
[1766483737296,3.374,2964.2,2963.5,0.00390086]
[1766483737502,3.374,2964.2,2963.5,1.20534202]
[1766483737700,3.374,2964.2,2963.6,3.374]
[1766483738101,0.0877,2964.1,2963.6,3.374]
[1766483738610,3.374,2964.2,2963.5,0.00390086]
[1766483738905,0.0877,2964.0,2963.5,0.00390086]
[1766483741108,3.54279,2964.2,2963.5,0.00390086]
[1766483741310,1.20144116,2964.1,2963.5,3.37790086]
[1766483743109,3.54279,2964.2,2963.5,3.37790086]
[1766483743307,0.0874,2964.1,2963.5,3.37790086]
[1766483743710,3.54279,2964.2,2963.5,3.37790086]
[1766483743913,0.0874,2964.1,2963.5,3.37790086]
[1766483744408,3.54279,2964.2,2963.5,3.37790086]
[1766483744609,0.0874,2964.1,2963.5,3.37790086]
[1766483745413,3.54279,2964.2,2963.5,3.37790086]
[1766483748412,0.16876,2964.8,2964.0,1.20144116]
[1766483748614,3.54376,2964.8,2963.9,3.375]
[1766483748817,3.54376,2964.8,2964.0,4.57644116]
[1766483749013,3.63056,2964.8,2964.0,4.57644116]
[1766483749317,3.54376,2964.8,2964.0,4.57644116]
[1766483749517,3.54719437,2964.8,2964.0,4.57644116]
[1766483753415,3.54719437,2964.8,2964.0,3.375]
[1766483753615,3.54719437,2964.8,2964.0,4.57644116]
[1766483754121,3.54719437,2964.8,2963.5,0.00390086]
[1766483754315,3.54719437,2964.8,2964.0,1.20144116]
[1766483754514,3.54719437,2964.8,2964.1,3.375]
[1766483754716,3.66469438,2964.8,2964.1,0.1175]
[1766483755016,3.66469438,2964.8,2964.2,3.375]
[1766483755511,3.66469438,2964.8,2964.1,0.1175]
[1766483755823,3.54719437,2964.8,2964.2,3.375]
[1766483756021,0.11750001,2964.7,2964.0,1.20144116]
[1766483756221,3.54719437,2964.8,2964.1,3.375]
[1766483756724,0.117,2964.7,2964.1,3.49199999]
[1766483757117,3.54719437,2964.8,2964.1,3.375]
[1766483757318,3.66419437,2964.8,2964.2,0.11699999]
[1766483757825,3.54719437,2964.8,2964.1,3.375]
[1766483758027,0.117,2964.7,2964.1,3.49199999]
[1766483762430,3.54719437,2964.8,2964.1,3.375]
[1766483763040,0.117,2964.7,2964.1,3.49199999]
[1766483763240,0.117,2964.7,2963.7,40.8]
[1766483763539,1.31844116,2964.6,2963.8,5.97799999]
[1766483763839,1.31844116,2964.6,2963.8,9.235]
[1766483764041,1.20144116,2964.6,2963.8,9.35199999]
[1766483764544,0.16877,2964.7,2963.8,9.35199999]
[1766483764744,0.117,2964.6,2963.8,9.35199999]
[1766483765136,0.16877,2964.7,2963.8,9.235]
[1766483765342,0.117,2964.6,2963.9,0.11699999]
[1766483765944,0.16877,2964.7,2963.8,9.235]
[1766483766144,0.11610001,2964.5,2963.9,0.1161]
[1766483769139,0.16877,2964.7,2963.8,9.235]
[1766483769745,0.28487001,2964.7,2963.9,0.1161]
[1766483770147,0.16877,2964.7,2963.8,9.235]
[1766483770349,3.54277,2964.7,2964.0,0.1161]
[1766483770848,3.54277,2964.7,2963.8,9.235]
[1766483771043,3.54277,2964.7,2963.9,0.1161]
[1766483771444,3.65557,2964.7,2963.9,0.1161]
[1766483771646,3.65557,2964.7,2963.8,9.235]
[1766483778550,1.20265825,2965.3,2963.8,9.235]
[1766483778551,0.16872,2965.6,2964.3,1.20265825]
[1766483778753,0.16872,2965.6,2964.4,9.237]
[1766483779252,0.20892,2965.6,2964.5,0.0402]
[1766483779552,0.00506235,2965.3,2964.5,0.0402]
[1766483779754,0.00506235,2965.3,2964.4,9.237]
[1766483779951,0.00506235,2965.3,2964.5,0.0402]
[1766483780348,0.00506235,2965.3,2964.4,9.237]
[1766483780546,0.00506235,2965.3,2964.5,0.0402]
[1766483781055,0.00506235,2965.3,2964.4,9.237]
[1766483781253,0.00506235,2965.3,2964.5,0.0402]
[1766483781659,0.00506235,2965.3,2964.4,9.237]
[1766483781858,0.00506235,2965.3,2964.5,0.0402]
[1766483782359,0.00506235,2965.3,2964.4,9.237]
[1766483785162,0.17274765,2965.6,2964.4,9.237]
[1766483785860,0.17274765,2965.6,2964.6,1.20265825]
[1766483786060,0.00506235,2965.4,2964.7,3.374]
[1766483786359,0.00506235,2965.4,2964.8,5.862]
[1766483786557,0.00506235,2965.4,2964.8,5.9023]
[1766483789053,0.17274765,2965.6,2964.8,5.9023]
[1766483789256,0.17274765,2965.6,2964.8,5.862]
[1766483789961,0.00506235,2965.5,2964.8,5.862]
[1766483790157,0.17274765,2965.6,2964.8,5.862]
[1766483790359,3.374,2965.8,2964.8,5.862]
[1766483791162,0.00506235,2965.6,2964.8,5.862]
[1766483791548,0.17744446,2965.6,2964.8,5.862]
[1766483794567,4.57665825,2965.5,2964.0,0.00506235]
[1766483794768,4.57665825,2965.5,2964.3,0.1128]
[1766483794967,4.57665825,2965.5,2964.4,3.373]
[1766483795269,3.54272,2965.5,2964.5,2.868]
[1766483795567,0.0421,2965.4,2964.5,2.9101]
[1766483795769,0.0421,2965.4,2964.5,2.868]
[1766483795968,0.0421,2965.4,2964.6,0.0421]
[1766483796166,0.0421,2965.4,2964.7,3.373]
[1766483796568,3.54272,2965.5,2964.8,0.04199999]
[1766483796969,0.042,2965.4,2964.8,0.04199999]
[1766483797366,0.04040001,2965.4,2964.8,0.0404]
[1766483797570,3.41440001,2965.4,2964.8,0.0404]
[1766483798466,0.16872,2965.5,2964.9,0.0404]
[1766483798671,0.16872,2965.5,2964.7,3.373]
[1766483804177,0.16872,2965.5,2964.3,1.20265825]
[1766483804364,0.16872,2965.5,2964.4,9.235]
[1766483804768,0.16872,2965.5,2964.3,1.20265825]
[1766483805074,0.16872,2965.5,2964.4,9.235]
[1766483806776,3.374,2965.4,2964.4,9.235]
[1766483818285,0.16872,2965.5,2964.4,9.235]
[1766483818584,3.374,2965.5,2964.4,9.235]
[1766483818982,0.00960001,2965.4,2964.5,0.0096]
[1766483819477,0.00960001,2965.4,2964.4,9.235]
[1766483819680,0.00960001,2965.4,2964.5,0.0118]
[1766483819882,3.54272,2965.5,2964.5,0.0118]
[1766483820078,3.55452,2965.5,2964.4,9.235]
[1766483820283,3.54272,2965.5,2964.4,9.235]
[1766483820991,3.54272,2965.5,2964.5,0.0118]
[1766483821990,3.54272,2965.5,2964.4,9.235]
[1766483822192,3.55452,2965.5,2964.5,0.0118]
[1766483822683,3.55452,2965.5,2964.4,9.235]
[1766483822883,3.54272,2965.5,2964.5,0.0118]
[1766483823594,3.55452,2965.5,2964.4,9.235]
[1766483824687,3.54272,2965.5,2964.5,0.0118]
[1766483825080,3.54272,2965.5,2964.4,9.235]
[1766483825285,0.0118,2965.4,2964.5,0.0118]
[1766483825692,3.54272,2965.5,2964.4,9.235]
[1766483825992,3.54272,2965.5,2964.4,10.43695381]
[1766483830400,0.16873,2965.4,2964.0,0.00506235]
[1766483830698,1.37068381,2965.4,2964.1,10.43695381]
[1766483830994,0.16873,2965.4,2964.3,1.20195381]
[1766483831181,0.0118,2965.3,2964.4,3.374]
[1766483831381,3.374,2965.2,2964.5,3.88]
[1766483833294,3.374,2965.2,2964.6,0.0118]
[1766483833489,0.16873,2965.4,2964.7,3.374]
[1766483835195,0.16873,2965.4,2964.7,4.57595381]
[1766483835690,0.16873,2965.4,2964.8,0.04249999]
[1766483836187,0.16873,2965.4,2964.7,4.57595381]
[1766483836385,0.16873,2965.4,2964.8,0.04249999]
[1766483836595,3.374,2965.5,2964.8,0.04249999]
[1766483836788,3.374,2965.5,2964.7,4.57595381]
[1766483836990,3.374,2965.5,2964.8,0.04249999]
[1766483837383,0.16873,2965.4,2964.7,4.57595381]
[1766483837586,0.16873,2965.4,2964.8,0.0493]
[1766483838285,0.16873,2965.4,2964.7,4.57595381]
[1766483838490,0.16873,2965.4,2964.8,0.0493]
[1766483838992,0.16873,2965.4,2964.7,4.57595381]
[1766483839295,3.374,2965.5,2964.8,0.0435]
[1766483839695,0.16873,2965.4,2964.8,0.0435]
[1766483839893,0.16873,2965.4,2964.7,4.57595381]
[1766483840098,0.16873,2965.4,2964.8,0.0468]
[1766483840490,0.16873,2965.4,2964.7,4.57595381]
[1766483840789,0.16873,2965.4,2964.8,0.0468]
[1766483841392,0.16873,2965.4,2964.7,4.57595381]
[1766483841594,0.16873,2965.4,2964.8,0.0468]
[1766483842107,3.374,2965.5,2964.8,0.0468]
[1766483842307,0.16873,2965.4,2964.7,4.57595381]
[1766483842500,0.16873,2965.4,2964.8,0.0468]
[1766483842998,0.16873,2965.4,2964.7,4.57595381]
[1766483843198,0.16873,2965.4,2964.8,0.0502]
[1766483844007,0.16873,2965.4,2964.7,4.57595381]
[1766483844210,0.16873,2965.4,2964.8,0.0502]
[1766483845008,0.16873,2965.4,2964.7,4.57595381]
[1766483845205,0.16873,2965.4,2964.8,0.0502]
[1766483845707,0.16873,2965.4,2964.7,4.57595381]
[1766483845903,0.16873,2965.4,2964.8,0.0502]
[1766483846111,0.16873,2965.4,2964.7,4.57595381]
[1766483850712,0.16873,2965.4,2964.7,3.374]
[1766483851210,0.16873,2965.4,2964.3,4.57595381]
[1766483858215,0.16873,2965.4,2964.5,1.20195381]
[1766483859718,0.16873,2965.4,2964.6,3.374]
[1766483865014,3.374,2965.3,2964.6,3.374]
[1766483865817,0.00872446,2965.6,2964.6,3.374]
[1766483866015,3.374,2966.0,2965.3,1.20195381]
[1766483866418,3.4205,2966.0,2964.9,3.374]
[1766483866723,4.57595381,2966.0,2964.9,3.374]
[1766483867122,0.00506235,2965.7,2965.2,0.00506235]
[1766483867514,1.20195381,2965.4,2964.2,1.20195381]
[1766483867724,3.374,2965.3,2964.3,44.174]
[1766483868118,4.57595381,2965.3,2964.3,3.4217]
[1766483868326,4.57595381,2965.3,2964.3,3.374]
[1766483868619,0.0477,2965.2,2964.4,0.0477]
[1766483868823,0.0477,2965.2,2964.5,0.00506235]
[1766483869124,4.57595381,2965.3,2964.5,0.00506235]
[1766483869324,0.0477,2965.1,2964.5,0.00506235]
[1766483869523,3.374,2965.0,2964.5,0.00506235]
[1766483870221,0.0477,2965.1,2964.5,0.00506235]
[1766483870425,3.374,2965.2,2964.5,0.00506235]
[1766483873230,1.20195381,2965.6,2964.5,0.00506235]
[1766483873431,3.374,2965.5,2964.5,0.00506235]
[1766483876030,1.20195381,2965.4,2964.5,0.00506235]
[1766483879333,1.20195381,2965.2,2964.5,0.00506235]
[1766483879634,3.374,2965.1,2964.5,0.00506235]
[1766483880333,3.374,2965.1,2964.3,3.374]
[1766483881131,3.374,2965.1,2963.8,40.8]
[1766483881330,1.20195381,2964.8,2964.2,0.00506235]
[1766483881724,0.0455,2964.7,2964.2,0.00506235]
[1766483884033,3.374,2964.8,2963.8,5.864]
[1766483884334,3.374,2964.8,2963.9,3.374]
[1766483884730,0.0455,2964.7,2964.0,0.0455]
[1766483885137,0.0455,2964.7,2964.1,0.00506235]
[1766483885536,3.374,2964.8,2964.1,0.00506235]
[1766483886241,3.374,2965.1,2964.2,3.374]
[1766483886740,0.0465,2965.0,2964.3,0.0465]
[1766483887140,3.374,2965.1,2964.2,3.374]
[1766483888442,0.0474,2965.0,2964.2,3.4214]
[1766483889044,3.374,2965.1,2964.2,3.374]
[1766483894844,3.374,2965.0,2964.2,3.374]
[1766483895045,3.374,2965.0,2964.3,0.0167]
[1766483895444,3.374,2965.0,2964.2,3.374]
[1766483895642,0.0167,2964.9,2964.3,0.0167]
[1766483898448,3.374,2965.0,2964.2,3.374]
[1766483898648,3.374,2965.0,2964.2,3.3285]
[1766483898946,3.374,2964.9,2964.2,3.3285]
[1766483902949,3.374,2964.9,2964.1,0.00506235]
[1766483905249,3.374,2964.9,2964.0,3.374]
[1766483905443,0.0045,2964.8,2964.1,0.0045]
[1766483905943,3.374,2964.9,2964.0,3.374]
[1766483906139,0.1045,2964.7,2964.2,0.00506235]
[1766483909151,3.374,2964.9,2964.2,0.00506235]
[1766483911952,3.374,2964.9,2964.0,3.374]
[1766483915249,5.554,2965.0,2964.0,3.374]
[1766483915452,3.374,2964.8,2964.0,3.374]
[1766483930064,5.554,2965.0,2964.0,3.374]
[1766483930267,3.374,2964.7,2964.0,3.374]
[1766483942068,3.374,2964.7,2963.2,1.20262191]
[1766483942264,4.57662191,2964.7,2963.6,3.374]
[1766483942458,4.74538191,2964.7,2962.8,2.08110853]
[1766483942665,1.20262191,2964.4,2963.6,3.374]
[1766483942859,3.374,2964.3,2963.6,3.374]
[1766483947882,3.374,2964.3,2963.6,3.374]
[1766483966986,1.20304306,2964.2,2963.6,3.374]
[1766483967188,1.20810541,2964.2,2963.6,3.374]
[1766483971890,0.00506235,2964.2,2963.6,3.374]
[1766483984902,3.374,2964.3,2963.6,3.374]
[1766483985902,0.00506235,2964.2,2963.7,0.00506235]
[1766483992003,3.375,2964.1,2963.7,0.00506235]
[1766484006618,0.16874,2965.1,2963.7,0.00506235]
[1766484006826,4.056,2965.0,2963.9,1.20304306]
[1766484007622,0.00506235,2964.7,2963.9,1.20304306]
[1766484007822,3.375,2964.6,2963.9,1.20304306]
[1766484008023,3.375,2964.6,2963.7,3.38006235]
[1766484035346,3.375,2964.6,2963.8,3.374]
[1766484036763,3.374,2965.2,2964.4,1.20256947]
[1766484036940,3.374,2965.2,2964.4,4.57656947]
[1766484037242,3.374,2965.2,2964.4,3.374]
[1766484037846,0.00506235,2965.1,2964.4,3.374]
[1766484044246,0.16873,2965.4,2964.4,3.374]
[1766484044451,3.374,2965.6,2964.8,1.20256947]
[1766484044752,3.374,2965.6,2964.8,4.57656947]
[1766484045347,0.00506235,2965.5,2964.8,4.57656947]
[1766484055464,3.374,2965.6,2964.8,4.57656947]
[1766484055765,3.373,2965.9,2964.9,5.862]
[1766484056056,3.1762,2965.9,2965.1,1.20256947]
[1766484056260,3.1762,2965.9,2965.2,3.373]
[1766484056463,0.00506235,2965.8,2965.3,0.00506235]
[1766484061370,3.1762,2965.9,2965.3,0.00506235]
[1766484062470,3.1795749,2965.9,2965.3,0.00506235]
[1766484063266,1.20256947,2965.7,2964.7,3.373]
[1766484063459,3.373,2965.6,2964.7,3.373]
[1766484064068,3.373,2965.6,2964.9,0.00506235]
[1766484065965,3.373,2965.6,2964.7,3.373]
[1766484066168,3.373,2965.6,2963.8,40.8]
[1766484066371,1.20256947,2965.4,2963.9,9.235]
[1766484066567,3.373,2965.3,2964.0,3.373]
[1766484066776,1.20256947,2965.1,2964.0,3.373]
[1766484066959,3.373,2965.0,2964.3,0.00506235]
[1766484067164,3.373,2965.0,2964.0,3.373]
[1766484067464,3.373,2965.0,2964.1,3.373]
[1766484068272,3.373,2965.0,2964.3,0.00506235]
[1766484070065,4.57561071,2965.0,2964.3,0.00506235]
[1766484070869,4.74436071,2965.0,2964.3,0.00506235]
[1766484073073,3.54175,2965.0,2964.3,0.00506235]
[1766484073974,0.16875,2965.0,2964.3,0.00506235]
[1766484074170,0.16875,2965.0,2964.4,3.374]
[1766484080387,3.374,2965.2,2964.4,3.374]
[1766484080587,3.374,2965.2,2964.5,1.20261071]
[1766484081278,3.374,2965.2,2964.4,3.374]
[1766484082183,3.54274,2965.2,2964.5,3.374]
[1766484085489,3.54274,2965.2,2964.3,1.20767306]
[1766484085681,3.54274,2965.2,2964.4,3.374]
[1766484088683,3.54274,2965.2,2964.4,4.57661071]
[1766484089474,3.1771,2965.2,2964.6,1.20261071]
[1766484089683,3.541,2965.5,2964.7,3.374]
[1766484095695,3.541,2965.5,2964.6,1.20261071]
[1766484095895,3.541,2965.5,2964.7,3.374]
[1766484097888,0.1687,2965.8,2965.1,1.20261071]
[1766484098093,0.0033749,2965.9,2965.2,3.374]
[1766484098796,0.0033749,2965.9,2965.3,1.20261071]
[1766484099194,0.16867,2966.5,2965.3,7.06561071]
[1766484099400,3.374,2966.4,2965.3,7.06561071]
[1766484100302,0.00506235,2966.1,2965.3,7.06561071]
[1766484101095,0.00506235,2966.1,2965.5,1.20261071]
[1766484101299,0.00506235,2966.1,2965.6,3.373]
[1766484101591,0.00506235,2966.1,2965.6,3.37568216]
[1766484101799,3.37637763,2966.4,2965.6,3.37568216]
[1766484102195,3.37637763,2966.4,2965.6,0.00268216]
[1766484102395,3.37637763,2966.4,2965.7,3.373]
[1766484102794,0.00506235,2966.3,2965.7,3.373]
[1766484104096,3.37637763,2966.4,2965.7,3.373]
[1766484104307,3.37637763,2966.4,2965.9,1.20261071]
[1766484104502,3.373,2966.8,2966.1,1.20261071]
[1766484105191,0.00506235,2966.7,2966.2,0.00506235]
[1766484105397,0.00848848,2966.7,2966.2,0.00506235]
[1766484106201,0.16862,2967.2,2966.2,0.00506235]
[1766484106505,9.37563,2967.1,2966.3,3.373]
[1766484106799,3.373,2967.0,2966.3,3.373]
[1766484107199,3.37579376,2967.0,2966.3,3.373]
[1766484109008,3.37579376,2967.0,2966.4,1.20261071]
[1766484112006,3.37579376,2967.0,2966.3,3.373]
[1766484113105,3.37579376,2967.0,2966.2,1.20767306]
[1766484113305,3.37579376,2967.0,2966.3,3.373]
[1766484124112,3.37579376,2967.0,2966.4,3.372]
[1766484125717,3.37579376,2967.0,2966.2,0.00506235]
[1766484125914,3.37579376,2967.0,2966.3,9.232]
[1766484127122,3.37579376,2967.0,2966.2,0.00506235]
[1766484127617,3.37579376,2967.0,2966.3,3.372]
[1766484128521,3.37579376,2967.0,2966.2,0.00506235]
[1766484128723,3.37579376,2967.0,2966.3,3.372]
[1766484129314,3.37579376,2967.0,2966.2,5.86506235]
[1766484129511,3.37579376,2967.0,2966.3,3.372]
[1766484130119,3.37579376,2967.0,2966.2,0.00506235]
[1766484130321,3.37579376,2967.0,2966.3,3.372]
[1766484145843,5.832,2967.2,2966.4,1.20086812]
[1766484146036,5.832,2967.2,2966.5,1.20086812]
[1766484146231,5.832,2967.2,2966.6,3.372]
[1766484146941,5.83461326,2967.2,2966.6,3.372]
[1766484147739,0.00261326,2967.2,2966.6,8.696]
[1766484147941,0.00261326,2967.2,2966.7,0.0079]
[1766484148138,5.832,2967.6,2966.7,0.0079]
[1766484148339,5.832,2967.6,2966.6,8.696]
[1766484148539,0.008,2967.5,2966.7,0.008]
[1766484149036,5.832,2967.6,2966.6,8.696]
[1766484149341,0.008,2967.4,2966.7,0.008]
[1766484149742,5.83492016,2967.6,2966.6,8.696]
[1766484149945,0.008,2967.5,2966.7,0.008]
[1766484150543,5.83492016,2967.6,2966.6,8.696]
[1766484150743,0.16856,2968.3,2967.1,1.20086812]
[1766484150947,0.16856,2968.3,2967.2,9.24]
[1766484151138,0.16856,2968.3,2967.2,9.244]
[1766484151139,3.376,2968.2,2967.2,9.244]
[1766484151334,3.376,2968.2,2967.2,9.24]
[1766484151538,3.372,2968.2,2967.2,9.24]
[1766484151744,3.37628718,2968.2,2967.2,9.24]
[1766484154647,3.37628718,2968.2,2967.4,1.20086812]
[1766484154852,0.00428718,2968.2,2967.5,3.371]
[1766484155141,0.00428718,2968.2,2967.6,5.869]
[1766484155447,0.00428718,2968.2,2967.6,5.8731]
[1766484156246,0.00428718,2968.2,2967.6,5.869]
[1766484157048,3.371,2968.5,2967.6,5.869]
[1766484157248,3.371,2968.5,2967.8,0.00506235]
[1766484157544,3.371,2968.5,2967.9,3.371]
[1766484157945,3.37906269,2968.5,2967.9,3.37878893]
[1766484159147,3.37486268,2968.5,2967.9,3.37458893]
[1766484160351,0.16853,2968.8,2968.0,5.868]
[1766484160352,3.53953,2968.8,2968.0,5.868]
[1766484160741,0.004,2968.7,2968.0,5.872]
[1766484160949,3.53953,2968.8,2968.0,0.004]
[1766484161145,0.16854,2968.6,2967.8,0.00506235]
[1766484161344,3.371,2968.5,2967.2,1.20086812]
[1766484161553,3.3825,2968.5,2967.3,3.9925]
[1766484161852,0.16857,2968.2,2967.4,3.981]
[1766484162048,3.53957,2968.2,2966.9,1.20086812]
[1766484162248,3.54297803,2968.2,2967.0,8.635]
[1766484162452,0.00503335,2967.8,2967.3,0.00505364]
[1766484162648,0.00503335,2967.8,2967.4,3.371]
[1766484163054,0.00503335,2967.8,2967.4,3.3888]
[1766484168447,0.0178,2968.0,2967.4,3.3888]
[1766484168646,3.54297803,2968.2,2967.4,3.371]
[1766484172648,3.54297803,2968.2,2967.3,0.00505364]
[1766484172854,3.54297803,2968.2,2967.4,3.371]
[1766484173353,0.0142,2968.1,2967.4,3.38519999]
[1766484174257,3.54297803,2968.2,2967.4,3.38519999]
[1766484174449,0.0142,2968.1,2967.4,3.38519999]
[1766484174651,0.0142,2968.1,2967.4,0.01419999]
[1766484174955,3.54297803,2968.2,2967.4,3.38519999]
[1766484175155,0.0142,2968.0,2967.4,3.38519999]
[1766484175355,3.54297803,2968.2,2967.4,3.38519999]
[1766484176248,3.54297803,2968.2,2967.4,3.371]
[1766484177655,3.54297803,2968.2,2967.3,0.00505364]
[1766484177857,3.54297803,2968.2,2967.4,3.371]
[1766484178254,0.0142,2968.1,2967.4,3.38519999]
[1766484178757,0.0142,2968.1,2967.4,3.371]
[1766484178958,3.54297803,2968.2,2967.4,3.371]
[1766484179158,0.0142,2968.1,2967.5,0.01419999]
[1766484180953,0.0142,2968.1,2967.5,3.38519999]
[1766484181354,3.54297803,2968.2,2967.5,3.371]
[1766484181652,0.0142,2968.1,2967.5,3.38519999]
[1766484184458,0.0142,2968.1,2967.5,0.01419999]
[1766484184863,3.54297803,2968.2,2967.4,3.371]
[1766484185054,0.0142,2968.0,2967.4,3.38519999]
[1766484186261,0.0142,2968.0,2967.4,0.01419999]
[1766484186461,0.0142,2968.0,2967.4,3.38519999]
[1766484186663,3.54297803,2968.2,2967.4,3.371]
[1766484186860,0.0142,2968.1,2967.5,0.01419999]
[1766484187678,3.54297803,2968.2,2967.4,3.371]
[1766484188658,9.202,2968.7,2967.5,1.20086812]
[1766484189366,3.371,2968.7,2967.8,1.20086812]
[1766484189567,0.16853,2968.8,2967.9,5.637]
[1766484189768,0.17240463,2968.8,2967.9,5.637]
[1766484190062,0.20080463,2968.8,2968.0,0.02839999]
[1766484190563,0.17240463,2968.8,2967.9,5.637]
[1766484190865,0.17240463,2968.8,2968.0,0.0323]
[1766484191368,0.17240463,2968.8,2967.9,5.637]
[1766484191559,0.17240463,2968.8,2968.0,0.0323]
[1766484191759,4.63e-06,2968.8,2968.0,0.0323]
[1766484191961,4.63e-06,2968.8,2968.3,1.19894906]
[1766484192259,0.0323,2969.2,2968.4,3.371]
[1766484193068,0.00376712,2969.2,2968.5,1.23474906]
[1766484193862,0.00376712,2969.2,2968.5,0.0358]
[1766484194362,0.03956712,2969.2,2968.4,3.371]
[1766484194560,0.00376712,2969.2,2968.4,3.371]
[1766484194870,0.00376712,2969.2,2968.5,3.37]
[1766484197875,0.00376712,2969.2,2968.5,4.56894906]
[1766484199579,0.00376712,2969.2,2967.6,40.8]
[1766484199775,0.00376712,2969.2,2968.4,1.19894906]
[1766484199971,0.00376712,2969.2,2968.5,9.236]
[1766484204364,0.16849,2969.5,2968.5,9.236]
[1766484204570,0.16849,2969.5,2968.7,1.19894906]
[1766484204773,1.36743906,2969.5,2968.8,0.00505364]
[1766484205081,1.19894906,2969.3,2968.8,3.64e-06]
[1766484205477,0.00392285,2969.3,2968.8,3.64e-06]
[1766484205880,0.00897285,2969.3,2968.8,3.64e-06]
[1766484206981,3.37897285,2969.3,2968.8,3.64e-06]
[1766484210582,0.03579999,2969.2,2968.3,1.19894906]
[1766484210778,0.03579999,2969.2,2968.4,8.251]
[1766484210978,0.0359,2969.1,2968.4,0.0359]
[1766484211173,1.19894906,2968.9,2968.3,3.37]
[1766484211373,1.36747906,2968.9,2968.0,3.37]
[1766484211579,0.20503,2968.8,2968.2,0.00505364]
[1766484211782,3.37,2968.7,2968.2,0.00505364]
[1766484211981,3.37,2968.7,2968.1,0.0365]
[1766484212486,3.4066,2968.7,2968.1,0.0365]
[1766484212984,3.4066,2968.7,2968.1,0.04155364]
[1766484215488,3.37,2968.7,2968.1,0.00505364]
[1766484218883,3.37,2968.7,2968.0,3.37]
[1766484219888,3.37,2968.7,2968.1,0.00505364]
[1766484220492,1.40408906,2968.6,2967.6,3.37]
[1766484220691,1.36750906,2968.4,2967.6,3.37]
[1766484220882,3.53856,2968.3,2967.6,3.37]
[1766484221590,3.53856,2968.3,2967.7,0.00505364]
[1766484222595,0.0237,2968.2,2967.7,0.00505364]
[1766484223093,3.53856,2968.3,2967.7,0.00505364]
[1766484223388,0.0237,2968.2,2967.5,0.0237]
[1766484223578,1.19894906,2967.9,2967.1,3.37]
[1766484223782,4.56894906,2967.9,2967.1,3.3937]